[Event "*** Titled Tuesday Blitz"]
[Site "Chess.com"]
[Date "2021.03.09"]
[Round "5"]
[White "Airquake"]
[Black "iturrizaga"]
[Result "0-1"]
[WhiteElo "2601"]
[BlackElo "2840"]
[TimeControl "180+1"]
[EndTime "10:58:04 PST"]
[Termination "iturrizaga won on time"]

1. e4 {[%clk 0:02:41.7]} 1... c5 {[%clk 0:02:59.8]} 2. Nf3 {[%clk 0:02:41.6]}
2... g6 {[%clk 0:03:00.1]} 3. Bc4 {[%clk 0:02:41.7]} 3... Nc6 {[%clk 0:02:58.2]}
4. O-O {[%clk 0:02:42.2]} 4... Bg7 {[%clk 0:02:57.8]} 5. c3 {[%clk 0:02:42.7]}
5... e6 {[%clk 0:02:25.4]} 6. d4 {[%clk 0:02:41.1]} 6... cxd4 {[%clk 0:02:26.3]}
7. cxd4 {[%clk 0:02:41.1]} 7... d5 {[%clk 0:02:26]} 8. exd5 {[%clk 0:02:41.3]}
8... exd5 {[%clk 0:02:26.9]} 9. Re1+ {[%clk 0:02:41.3]} 9... Nge7 {[%clk
0:02:26.5]} 10. Bb3 {[%clk 0:02:16.3]} 10... O-O {[%clk 0:02:25.9]} 11. h3
{[%clk 0:02:15.5]} 11... h6 {[%clk 0:02:25.6]} 12. Nc3 {[%clk 0:02:14.9]} 12...
Be6 {[%clk 0:02:24.6]} 13. Bf4 {[%clk 0:02:11.5]} 13... Nf5 {[%clk 0:02:23.7]}
14. Nb5 {[%clk 0:02:09]} 14... Rc8 {[%clk 0:02:20.2]} 15. g4 {[%clk 0:02:04.2]}
15... Nh4 {[%clk 0:02:18.3]} 16. Ne5 {[%clk 0:01:31.6]} 16... Qf6 {[%clk
0:01:13]} 17. Bg3 {[%clk 0:00:40.8]} 17... Rfd8 {[%clk 0:01:12.5]} 18. Re3
{[%clk 0:00:36.8]} 18... a6 {[%clk 0:01:10]} 19. Nc3 {[%clk 0:00:36.5]} 19... h5
{[%clk 0:01:00.7]} 20. gxh5 {[%clk 0:00:30.8]} 20... Nf5 {[%clk 0:00:59.7]} 21.
Rd3 {[%clk 0:00:25.3]} 21... Ncxd4 {[%clk 0:00:52.7]} 22. Rxd4 {[%clk
0:00:17.7]} 22... Nxg3 {[%clk 0:00:52.7]} 23. fxg3 {[%clk 0:00:15.8]} 23... Qxe5
{[%clk 0:00:53.1]} 24. Rf4 {[%clk 0:00:15.6]} 24... Qg5 {[%clk 0:00:42.2]} 25.
Kh2 {[%clk 0:00:10.1]} 25... Be5 {[%clk 0:00:40.2]} 26. Rf3 {[%clk 0:00:09.8]}
26... Qxh5 {[%clk 0:00:37.3]} 27. Qf1 {[%clk 0:00:06.7]} 27... Bxh3 {[%clk
0:00:36.5]} 0-1

[Event "*** Titled Tuesday Blitz"]
[Site "Chess.com"]
[Date "2021.03.09"]
[Round "5"]
[White "mikolka1985"]
[Black "Benjoneliere44"]
[Result "1-0"]
[WhiteElo "2692"]
[BlackElo "2504"]
[TimeControl "180+1"]
[EndTime "10:58:04 PST"]
[Termination "mikolka1985 won by resignation"]

1. d4 {[%clk 0:03:00.9]} 1... d6 {[%clk 0:02:58.4]} 2. c4 {[%clk 0:02:52.2]}
2... e5 {[%clk 0:02:47.2]} 3. Nc3 {[%clk 0:02:52.1]} 3... exd4 {[%clk
0:02:46.5]} 4. Qxd4 {[%clk 0:02:52]} 4... Nc6 {[%clk 0:02:47]} 5. Qd2 {[%clk
0:02:51.5]} 5... Nf6 {[%clk 0:02:46.7]} 6. b3 {[%clk 0:02:37.4]} 6... Be6 {[%clk
0:02:45.4]} 7. e4 {[%clk 0:02:33]} 7... a5 {[%clk 0:02:41]} 8. Bd3 {[%clk
0:02:25.4]} 8... a4 {[%clk 0:01:36]} 9. Rb1 {[%clk 0:02:24.3]} 9... axb3 {[%clk
0:01:32]} 10. axb3 {[%clk 0:02:23.9]} 10... Nb4 {[%clk 0:01:25.9]} 11. Nge2
{[%clk 0:02:22.6]} 11... Nxd3+ {[%clk 0:01:16.4]} 12. Qxd3 {[%clk 0:02:22.3]}
12... g6 {[%clk 0:01:11.5]} 13. O-O {[%clk 0:02:21.6]} 13... Bg7 {[%clk
0:01:11.9]} 14. Bb2 {[%clk 0:02:21.3]} 14... O-O {[%clk 0:01:11.8]} 15. Nd5
{[%clk 0:02:18]} 15... Nxd5 {[%clk 0:01:08.2]} 16. cxd5 {[%clk 0:02:16.5]} 16...
Bd7 {[%clk 0:01:06]} 17. Bxg7 {[%clk 0:02:15.2]} 17... Kxg7 {[%clk 0:01:06.9]}
18. Rfc1 {[%clk 0:02:14.4]} 18... c5 {[%clk 0:01:05]} 19. dxc6 {[%clk
0:02:12.2]} 19... Bxc6 {[%clk 0:01:04.8]} 20. Nc3 {[%clk 0:02:09.3]} 20... Re8
{[%clk 0:01:02.1]} 21. Rd1 {[%clk 0:02:08.5]} 21... Qf6 {[%clk 0:00:58.4]} 22.
f3 {[%clk 0:01:56.4]} 22... Rad8 {[%clk 0:00:53.8]} 23. b4 {[%clk 0:01:50.6]}
23... Re5 {[%clk 0:00:40.5]} 24. b5 {[%clk 0:01:48.3]} 24... Be8 {[%clk
0:00:41]} 25. Nd5 {[%clk 0:01:47.5]} 25... Qe6 {[%clk 0:00:38.9]} 26. Re1 {[%clk
0:01:35.1]} 26... f6 {[%clk 0:00:38.2]} 27. f4 {[%clk 0:01:33.6]} 27... Rh5
{[%clk 0:00:38]} 28. Qc3 {[%clk 0:01:25.3]} 28... Bf7 {[%clk 0:00:37.3]} 29. h3
{[%clk 0:01:15.9]} 29... Rc8 {[%clk 0:00:35.9]} 30. Qd4 {[%clk 0:01:09.1]} 30...
Rc5 {[%clk 0:00:34.9]} 31. b6 {[%clk 0:01:05.9]} 31... g5 {[%clk 0:00:31]} 32.
Nc7 {[%clk 0:01:01.2]} 32... Qc4 {[%clk 0:00:29.2]} 33. Qxd6 {[%clk 0:00:55.6]}
33... gxf4 {[%clk 0:00:27.2]} 34. Qe7 {[%clk 0:00:52.3]} 34... Qd4+ {[%clk
0:00:17.3]} 35. Kh1 {[%clk 0:00:50.7]} 35... Rcg5 {[%clk 0:00:13.8]} 36. Ne6+
{[%clk 0:00:49.4]} 1-0

[Event "*** Titled Tuesday Blitz"]
[Site "Chess.com"]
[Date "2021.03.09"]
[Round "5"]
[White "kleopl"]
[Black "barbara25"]
[Result "0-1"]
[WhiteElo "2475"]
[BlackElo "2286"]
[TimeControl "180+1"]
[EndTime "10:58:04 PST"]
[Termination "barbara25 won by resignation"]

1. c4 {[%clk 0:03:00.9]} 1... e5 {[%clk 0:02:58.6]} 2. Nc3 {[%clk 0:03:00.4]}
2... Nf6 {[%clk 0:02:56.6]} 3. Nf3 {[%clk 0:03:00.4]} 3... Nc6 {[%clk
0:02:52.2]} 4. e4 {[%clk 0:03:00.3]} 4... Bb4 {[%clk 0:02:51]} 5. d3 {[%clk
0:02:59.4]} 5... O-O {[%clk 0:02:50.1]} 6. Be2 {[%clk 0:02:56]} 6... Re8 {[%clk
0:02:49.4]} 7. O-O {[%clk 0:02:54.1]} 7... d6 {[%clk 0:02:48.8]} 8. Ne1 {[%clk
0:02:49.6]} 8... Ne7 {[%clk 0:02:46.2]} 9. Nc2 {[%clk 0:02:43.7]} 9... Bxc3
{[%clk 0:02:44.8]} 10. bxc3 {[%clk 0:02:44.6]} 10... Ng6 {[%clk 0:02:43.9]} 11.
Rb1 {[%clk 0:02:42.2]} 11... c6 {[%clk 0:02:43.7]} 12. Bh5 {[%clk 0:02:11.1]}
12... d5 {[%clk 0:02:41.6]} 13. Bxg6 {[%clk 0:02:07.6]} 13... hxg6 {[%clk
0:02:37.7]} 14. cxd5 {[%clk 0:02:05.7]} 14... cxd5 {[%clk 0:02:34]} 15. exd5
{[%clk 0:02:02.6]} 15... Nxd5 {[%clk 0:02:32.1]} 16. Bd2 {[%clk 0:02:01.5]}
16... Be6 {[%clk 0:02:31.1]} 17. Rxb7 {[%clk 0:01:56.1]} 17... Qc8 {[%clk
0:02:30.5]} 18. Rb3 {[%clk 0:01:17.2]} 18... Nf4 {[%clk 0:02:27.7]} 19. c4
{[%clk 0:01:17.2]} 19... Nh5 {[%clk 0:02:23.7]} 20. Be3 {[%clk 0:01:09.1]} 20...
e4 {[%clk 0:02:22.6]} 21. Rc3 {[%clk 0:01:00.9]} 21... exd3 {[%clk 0:02:17.7]}
22. Qxd3 {[%clk 0:01:01.8]} 22... Rd8 {[%clk 0:02:18]} 23. Qe2 {[%clk 0:01:00]}
23... Nf6 {[%clk 0:02:16.5]} 24. Nd4 {[%clk 0:00:58.1]} 24... Re8 {[%clk
0:02:13.2]} 25. Nxe6 {[%clk 0:00:57.5]} 25... Rxe6 {[%clk 0:02:12.2]} 26. Rd1
{[%clk 0:00:55]} 26... Qc6 {[%clk 0:02:11.5]} 27. Qd3 {[%clk 0:00:49.2]} 27...
a5 {[%clk 0:02:05.7]} 28. h3 {[%clk 0:00:48.6]} 28... a4 {[%clk 0:01:59.6]} 29.
c5 {[%clk 0:00:41.2]} 29... Rc8 {[%clk 0:01:57.9]} 30. Rc4 {[%clk 0:00:37.1]}
30... Nh5 {[%clk 0:01:33.8]} 31. Qd4 {[%clk 0:00:30.3]} 31... Nf6 {[%clk
0:01:28.8]} 32. Rxa4 {[%clk 0:00:26.1]} 32... Re4 {[%clk 0:01:28]} 33. Rc4
{[%clk 0:00:14.9]} 33... Rxd4 {[%clk 0:01:28]} 34. Bxd4 {[%clk 0:00:15.5]} 34...
Ne4 {[%clk 0:01:22.9]} 35. Be3 {[%clk 0:00:14]} 35... f5 {[%clk 0:01:22]} 36. a4
{[%clk 0:00:13.3]} 36... Ra8 {[%clk 0:01:18.6]} 37. Rdd4 {[%clk 0:00:11.7]}
37... Rb8 {[%clk 0:01:16.6]} 38. Kh2 {[%clk 0:00:10.3]} 38... Qc7+ {[%clk
0:01:15.8]} 39. g3 {[%clk 0:00:10.6]} 39... Rb2 {[%clk 0:01:14]} 40. Kg2 {[%clk
0:00:09.3]} 40... Qxg3+ {[%clk 0:01:12.3]} 41. Kf1 {[%clk 0:00:09.2]} 41... Nxf2
{[%clk 0:01:08.5]} 0-1

[Event "*** Titled Tuesday Blitz"]
[Site "Chess.com"]
[Date "2021.03.09"]
[Round "5"]
[White "PopMilan95"]
[Black "exoticprincess"]
[Result "0-1"]
[WhiteElo "2606"]
[BlackElo "2875"]
[TimeControl "180+1"]
[EndTime "10:58:05 PST"]
[Termination "exoticprincess won on time"]

1. d4 {[%clk 0:03:00.9]} 1... Nf6 {[%clk 0:02:58.3]} 2. Bf4 {[%clk 0:03:00.1]}
2... e6 {[%clk 0:02:58.2]} 3. e3 {[%clk 0:02:59.9]} 3... b6 {[%clk 0:02:58.8]}
4. Qf3 {[%clk 0:02:22.9]} 4... Nc6 {[%clk 0:02:46.5]} 5. Nc3 {[%clk 0:02:18.3]}
5... Bb7 {[%clk 0:02:46.2]} 6. O-O-O {[%clk 0:02:08.9]} 6... Be7 {[%clk
0:02:27.8]} 7. h4 {[%clk 0:01:56]} 7... O-O {[%clk 0:02:25.1]} 8. h5 {[%clk
0:01:55]} 8... d6 {[%clk 0:02:10.3]} 9. Qg3 {[%clk 0:01:39.7]} 9... Kh8 {[%clk
0:01:58.5]} 10. h6 {[%clk 0:01:33.3]} 10... g6 {[%clk 0:01:58.1]} 11. Be2 {[%clk
0:01:16.6]} 11... a5 {[%clk 0:01:45.5]} 12. Bf3 {[%clk 0:01:09.5]} 12... a4
{[%clk 0:01:43.8]} 13. a3 {[%clk 0:01:09.2]} 13... Ra5 {[%clk 0:01:43.3]} 14.
Nh3 {[%clk 0:00:35.1]} 14... Qa8 {[%clk 0:01:33.2]} 15. Bg5 {[%clk 0:00:16.1]}
15... Kg8 {[%clk 0:01:27.1]} 16. Qh4 {[%clk 0:00:14.4]} 16... Qd8 {[%clk
0:01:24.6]} 17. Qg3 {[%clk 0:00:09.1]} 17... Ba8 {[%clk 0:01:22.2]} 18. e4
{[%clk 0:00:09.1]} 18... e5 {[%clk 0:01:12.5]} 19. dxe5 {[%clk 0:00:09.3]} 19...
Nxe5 {[%clk 0:01:12.9]} 20. Be2 {[%clk 0:00:09.6]} 20... Nxe4 {[%clk 0:01:05.2]}
21. Nxe4 {[%clk 0:00:09.6]} 21... Bxe4 {[%clk 0:01:06.1]} 22. f3 {[%clk
0:00:08.4]} 22... Bf5 {[%clk 0:01:04.6]} 23. Bxe7 {[%clk 0:00:07.6]} 23... Qxe7
{[%clk 0:01:05.5]} 24. f4 {[%clk 0:00:05.7]} 24... Rc5 {[%clk 0:01:01.8]} 25.
Rd2 {[%clk 0:00:04.9]} 25... Nc6 {[%clk 0:00:53.1]} 26. Re1 {[%clk 0:00:04.4]}
26... Re8 {[%clk 0:00:52.5]} 27. Nf2 {[%clk 0:00:02]} 27... Nd4 {[%clk
0:00:49.1]} 28. Nd3 {[%clk 0:00:02.2]} 28... Bxd3 {[%clk 0:00:40.3]} 0-1

[Event "*** Titled Tuesday Blitz"]
[Site "Chess.com"]
[Date "2021.03.09"]
[Round "5"]
[White "erdni1993"]
[Black "PaulfromSPb"]
[Result "0-1"]
[WhiteElo "2511"]
[BlackElo "2709"]
[TimeControl "180+1"]
[EndTime "10:58:08 PST"]
[Termination "PaulfromSPb won on time"]

1. e4 {[%clk 0:03:00.9]} 1... c5 {[%clk 0:02:58.5]} 2. Nf3 {[%clk 0:03:01.4]}
2... d6 {[%clk 0:02:50.7]} 3. d4 {[%clk 0:03:01.8]} 3... cxd4 {[%clk 0:02:50.1]}
4. Nxd4 {[%clk 0:03:02.7]} 4... Nf6 {[%clk 0:02:48.8]} 5. Nc3 {[%clk 0:03:03.2]}
5... a6 {[%clk 0:02:49.7]} 6. Bg5 {[%clk 0:03:02.7]} 6... e6 {[%clk 0:02:47.7]}
7. Qd2 {[%clk 0:02:59.6]} 7... Nbd7 {[%clk 0:02:45.7]} 8. a4 {[%clk 0:02:56.6]}
8... h6 {[%clk 0:02:43.7]} 9. Be3 {[%clk 0:02:55.9]} 9... Ng4 {[%clk 0:02:43.1]}
10. Bc4 {[%clk 0:02:50.5]} 10... Nxe3 {[%clk 0:02:42.6]} 11. Qxe3 {[%clk
0:02:51.4]} 11... Ne5 {[%clk 0:02:39.2]} 12. Ba2 {[%clk 0:02:51]} 12... Be7
{[%clk 0:02:38.9]} 13. Rd1 {[%clk 0:02:47.8]} 13... O-O {[%clk 0:02:32.6]} 14.
h3 {[%clk 0:02:45.4]} 14... Qc7 {[%clk 0:02:28]} 15. O-O {[%clk 0:02:38.4]}
15... Bd7 {[%clk 0:02:26]} 16. Qe2 {[%clk 0:02:26.4]} 16... Nc6 {[%clk
0:02:25.4]} 17. Nxc6 {[%clk 0:02:25]} 17... Bxc6 {[%clk 0:02:24.5]} 18. f4
{[%clk 0:02:21.9]} 18... Qb6+ {[%clk 0:02:21.7]} 19. Kh1 {[%clk 0:02:11.9]}
19... Qxb2 {[%clk 0:02:21.7]} 20. Qd3 {[%clk 0:02:11]} 20... Bf6 {[%clk
0:02:17.3]} 21. e5 {[%clk 0:02:01.8]} 21... dxe5 {[%clk 0:02:16.4]} 22. Rb1
{[%clk 0:02:01.4]} 22... Qa3 {[%clk 0:02:09]} 23. Rb3 {[%clk 0:01:39.8]} 23...
Qe7 {[%clk 0:02:05.9]} 24. Ne4 {[%clk 0:01:24.1]} 24... Rad8 {[%clk 0:02:02.2]}
25. Qe2 {[%clk 0:01:19.2]} 25... exf4 {[%clk 0:01:59.2]} 26. Rxf4 {[%clk
0:01:17]} 26... Be5 {[%clk 0:01:57.1]} 27. Rf1 {[%clk 0:01:05.2]} 27... Bxa4
{[%clk 0:01:54.2]} 28. Rbf3 {[%clk 0:00:56.8]} 28... Bb5 {[%clk 0:01:51.1]} 29.
c4 {[%clk 0:00:56.4]} 29... Bc6 {[%clk 0:01:50]} 30. Bb1 {[%clk 0:00:56.9]}
30... Bb8 {[%clk 0:01:48.2]} 31. Nf6+ {[%clk 0:00:43.9]} 31... gxf6 {[%clk
0:01:38.3]} 32. Rxf6 {[%clk 0:00:43.7]} 32... Rd4 {[%clk 0:01:31.1]} 33. Rxh6
{[%clk 0:00:21.8]} 33... Rh4 {[%clk 0:01:28.8]} 34. Rff6 {[%clk 0:00:14.4]}
34... Qd6 {[%clk 0:01:22.6]} 35. Rhg6+ {[%clk 0:00:04]} 35... fxg6 {[%clk
0:01:18.9]} 36. Rxg6+ {[%clk 0:00:04.9]} 36... Kh8 {[%clk 0:01:10.7]} 37. Qb2+
{[%clk 0:00:01.1]} 37... Qd4 {[%clk 0:01:03.8]} 38. Rh6+ {[%clk 0:00:01.3]}
38... Kg8 {[%clk 0:01:01.4]} 0-1

[Event "*** Titled Tuesday Blitz"]
[Site "Chess.com"]
[Date "2021.03.09"]
[Round "5"]
[White "mr65"]
[Black "Marcin"]
[Result "0-1"]
[WhiteElo "2105"]
[BlackElo "2525"]
[TimeControl "180+1"]
[EndTime "10:58:13 PST"]
[Termination "Marcin won by resignation"]

1. e4 {[%clk 0:03:00.9]} 1... c6 {[%clk 0:02:59.6]} 2. Nc3 {[%clk 0:02:59.6]}
2... d5 {[%clk 0:02:57.6]} 3. Nf3 {[%clk 0:02:59.2]} 3... a6 {[%clk 0:02:52.5]}
4. g3 {[%clk 0:02:52.7]} 4... d4 {[%clk 0:02:51.3]} 5. Ne2 {[%clk 0:02:50.7]}
5... c5 {[%clk 0:02:51.6]} 6. d3 {[%clk 0:02:49.6]} 6... Nc6 {[%clk 0:02:50.6]}
7. Bg2 {[%clk 0:02:49.1]} 7... e5 {[%clk 0:02:50.6]} 8. O-O {[%clk 0:02:48.6]}
8... f6 {[%clk 0:01:48.4]} 9. Nh4 {[%clk 0:02:44.7]} 9... Nge7 {[%clk 0:01:47]}
10. f4 {[%clk 0:02:42.9]} 10... exf4 {[%clk 0:01:42.8]} 11. Nxf4 {[%clk
0:02:25.3]} 11... Ne5 {[%clk 0:01:41.3]} 12. Nf3 {[%clk 0:02:15.6]} 12... N7c6
{[%clk 0:01:29.3]} 13. Nxe5 {[%clk 0:02:10.5]} 13... Nxe5 {[%clk 0:01:29.1]} 14.
Qh5+ {[%clk 0:02:04.1]} 14... g6 {[%clk 0:01:11.1]} 15. Qe2 {[%clk 0:02:01]}
15... Bd6 {[%clk 0:01:07.2]} 16. Nd5 {[%clk 0:01:59.2]} 16... O-O {[%clk
0:01:01.5]} 17. Bh6 {[%clk 0:01:53.1]} 17... Rf7 {[%clk 0:01:01.4]} 18. Bf4
{[%clk 0:01:40.6]} 18... Be6 {[%clk 0:00:59.2]} 19. Rae1 {[%clk 0:01:32.5]}
19... Bxd5 {[%clk 0:00:53.1]} 20. exd5 {[%clk 0:01:29.7]} 20... Qd7 {[%clk
0:00:53.7]} 21. h3 {[%clk 0:01:24.5]} 21... Re8 {[%clk 0:00:48.3]} 22. Qf2
{[%clk 0:01:21.5]} 22... Kg7 {[%clk 0:00:26.5]} 23. Kh2 {[%clk 0:01:21.2]} 23...
Rfe7 {[%clk 0:00:18]} 24. Be4 {[%clk 0:01:01.2]} 24... Nf7 {[%clk 0:00:17.6]}
25. Bd2 {[%clk 0:00:54.9]} 25... Be5 {[%clk 0:00:16.3]} 26. Bf4 {[%clk
0:00:49.3]} 26... Bxf4 {[%clk 0:00:15.9]} 27. Qxf4 {[%clk 0:00:46.5]} 27... f5
{[%clk 0:00:14.2]} 28. Bg2 {[%clk 0:00:42.8]} 28... Rxe1 {[%clk 0:00:14]} 29.
Rxe1 {[%clk 0:00:37.9]} 29... Rxe1 {[%clk 0:00:14.9]} 30. h4 {[%clk 0:00:34.9]}
30... Re3 {[%clk 0:00:14.9]} 31. h5 {[%clk 0:00:33.8]} 31... Qd6 {[%clk
0:00:15.5]} 32. h6+ {[%clk 0:00:31.3]} 32... Kf8 {[%clk 0:00:15.7]} 33. Qg5
{[%clk 0:00:30.8]} 33... Nxg5 {[%clk 0:00:15.4]} 0-1

[Event "*** Titled Tuesday Blitz"]
[Site "Chess.com"]
[Date "2021.03.09"]
[Round "5"]
[White "TimKett"]
[Black "andrzej"]
[Result "0-1"]
[WhiteElo "2195"]
[BlackElo "2362"]
[TimeControl "180+1"]
[EndTime "10:58:13 PST"]
[Termination "andrzej won on time"]

1. e4 {[%clk 0:03:00.9]} 1... c5 {[%clk 0:02:59.9]} 2. Nf3 {[%clk 0:02:56.6]}
2... Nc6 {[%clk 0:02:59.6]} 3. d4 {[%clk 0:02:56.3]} 3... cxd4 {[%clk
0:02:59.7]} 4. Nxd4 {[%clk 0:02:56.6]} 4... g6 {[%clk 0:03:00.4]} 5. Nc3 {[%clk
0:02:56.3]} 5... Bg7 {[%clk 0:03:00.3]} 6. Be3 {[%clk 0:02:56.8]} 6... Nf6
{[%clk 0:03:00.8]} 7. Bc4 {[%clk 0:02:56.8]} 7... O-O {[%clk 0:03:00.8]} 8. O-O
{[%clk 0:02:55.3]} 8... Nxe4 {[%clk 0:02:33.3]} 9. Nxe4 {[%clk 0:02:54.6]} 9...
d5 {[%clk 0:02:31.3]} 10. Nxc6 {[%clk 0:02:53.6]} 10... bxc6 {[%clk 0:02:30.9]}
11. Bd3 {[%clk 0:01:26.7]} 11... dxe4 {[%clk 0:02:30.7]} 12. Bxe4 {[%clk
0:01:27]} 12... Qc7 {[%clk 0:02:31.4]} 13. c3 {[%clk 0:01:22.2]} 13... a5 {[%clk
0:02:31]} 14. Qf3 {[%clk 0:01:21.9]} 14... Bd7 {[%clk 0:02:21.5]} 15. Rad1
{[%clk 0:01:15.9]} 15... Rab8 {[%clk 0:02:07.4]} 16. Rd2 {[%clk 0:01:11.8]}
16... f5 {[%clk 0:02:04.4]} 17. Bd3 {[%clk 0:01:06.4]} 17... Be6 {[%clk
0:01:59.7]} 18. Bb1 {[%clk 0:00:58.3]} 18... Bd5 {[%clk 0:01:51.9]} 19. Qe2
{[%clk 0:00:50.8]} 19... f4 {[%clk 0:01:42.8]} 20. Bd4 {[%clk 0:00:50]} 20... f3
{[%clk 0:01:36.6]} 21. gxf3 {[%clk 0:00:41.5]} 21... e5 {[%clk 0:01:24.4]} 22.
Bc5 {[%clk 0:00:38.5]} 22... Bxf3 {[%clk 0:01:16.2]} 23. Qc4+ {[%clk 0:00:30]}
23... Kh8 {[%clk 0:01:05.8]} 24. Bxf8 {[%clk 0:00:19.9]} 24... Rxf8 {[%clk
0:01:06.7]} 25. Rd3 {[%clk 0:00:07.7]} 25... e4 {[%clk 0:00:56.6]} 26. Rxf3
{[%clk 0:00:05.9]} 26... exf3 {[%clk 0:00:57.5]} 27. Re1 {[%clk 0:00:05.2]}
27... Qd8 {[%clk 0:00:52]} 28. Qg4 {[%clk 0:00:04.1]} 28... Qd2 {[%clk 0:00:50]}
29. Rf1 {[%clk 0:00:02.9]} 29... Qxb2 {[%clk 0:00:48.2]} 30. Bxg6 {[%clk
0:00:01.9]} 30... Rg8 {[%clk 0:00:41.2]} 0-1

[Event "*** Titled Tuesday Blitz"]
[Site "Chess.com"]
[Date "2021.03.09"]
[Round "5"]
[White "Synctel"]
[Black "masrahi"]
[Result "1-0"]
[WhiteElo "2014"]
[BlackElo "2186"]
[TimeControl "180+1"]
[EndTime "10:58:14 PST"]
[Termination "Synctel won by resignation"]

1. e4 {[%clk 0:03:00.9]} 1... e5 {[%clk 0:02:59.1]} 2. Nf3 {[%clk 0:03:00.2]}
2... Nc6 {[%clk 0:02:59.2]} 3. Bc4 {[%clk 0:02:53.3]} 3... Bc5 {[%clk
0:02:58.1]} 4. b4 {[%clk 0:02:52.5]} 4... Bxb4 {[%clk 0:02:57.4]} 5. c3 {[%clk
0:02:48.6]} 5... Bc5 {[%clk 0:02:57.1]} 6. d4 {[%clk 0:02:47.9]} 6... exd4
{[%clk 0:02:56.8]} 7. O-O {[%clk 0:02:43.3]} 7... d6 {[%clk 0:02:55.2]} 8. cxd4
{[%clk 0:02:29.1]} 8... Bb6 {[%clk 0:02:52.7]} 9. Nc3 {[%clk 0:02:08.4]} 9...
Na5 {[%clk 0:02:50.4]} 10. Bd3 {[%clk 0:02:04.4]} 10... Ne7 {[%clk 0:02:49.6]}
11. Be3 {[%clk 0:01:45.1]} 11... O-O {[%clk 0:02:45.4]} 12. h3 {[%clk
0:01:44.6]} 12... f5 {[%clk 0:02:38.6]} 13. e5 {[%clk 0:01:38.6]} 13... f4
{[%clk 0:02:28.2]} 14. Bd2 {[%clk 0:01:37]} 14... Bf5 {[%clk 0:02:05.9]} 15. Ne4
{[%clk 0:01:22.3]} 15... dxe5 {[%clk 0:01:40.5]} 16. Bxa5 {[%clk 0:01:12.5]}
16... Bxa5 {[%clk 0:01:38.3]} 17. Nxe5 {[%clk 0:00:29.6]} 17... Qxd4 {[%clk
0:01:28.4]} 18. Qb3+ {[%clk 0:00:20.1]} 18... Nd5 {[%clk 0:01:25.5]} 19. Bc4
{[%clk 0:00:06.8]} 19... Bxe4 {[%clk 0:01:23.9]} 20. Rad1 {[%clk 0:00:04.6]}
20... Qxe5 {[%clk 0:01:22.7]} 21. Bxd5+ {[%clk 0:00:05.1]} 21... Bxd5 {[%clk
0:01:21.5]} 22. Rxd5 {[%clk 0:00:05.8]} 22... Qc3 {[%clk 0:01:09.1]} 23. Rxa5+
{[%clk 0:00:03.3]} 23... Kh8 {[%clk 0:01:05.1]} 24. Qxc3 {[%clk 0:00:03]} 24...
f3 {[%clk 0:01:03.8]} 25. gxf3 {[%clk 0:00:02.1]} 25... Rae8 {[%clk 0:01:03]}
26. Rc5 {[%clk 0:00:01.9]} 26... c6 {[%clk 0:01:02.8]} 27. Re5 {[%clk
0:00:02.6]} 27... Rd8 {[%clk 0:01:02.4]} 28. Kg2 {[%clk 0:00:02.9]} 28... h6
{[%clk 0:01:01.4]} 29. Re7 {[%clk 0:00:03.3]} 29... Rg8 {[%clk 0:01:01]} 30.
Rxb7 {[%clk 0:00:03.9]} 30... Rd5 {[%clk 0:00:58.9]} 31. Re1 {[%clk 0:00:04]}
31... Rg5+ {[%clk 0:00:58.6]} 32. Kh2 {[%clk 0:00:04.4]} 32... Rf8 {[%clk
0:00:58.2]} 33. Ree7 {[%clk 0:00:04.6]} 33... Rxf3 {[%clk 0:00:55]} 34. Qxf3
{[%clk 0:00:03.5]} 34... Rg6 {[%clk 0:00:53]} 35. Rb8+ {[%clk 0:00:03.4]} 35...
Kh7 {[%clk 0:00:52.8]} 36. Ree8 {[%clk 0:00:03.9]} 36... Rf6 {[%clk 0:00:51.8]}
37. Qe4+ {[%clk 0:00:03.9]} 37... g6 {[%clk 0:00:49.5]} 38. Rb7+ {[%clk
0:00:04]} 1-0

[Event "*** Titled Tuesday Blitz"]
[Site "Chess.com"]
[Date "2021.03.09"]
[Round "5"]
[White "Aygehovit1992"]
[Black "Speed-O-Sonic"]
[Result "1-0"]
[WhiteElo "2642"]
[BlackElo "2332"]
[TimeControl "180+1"]
[EndTime "10:58:18 PST"]
[Termination "Aygehovit1992 won by resignation"]

1. e4 {[%clk 0:03:00.9]} 1... c6 {[%clk 0:03:00.3]} 2. Nc3 {[%clk 0:03:00.5]}
2... d5 {[%clk 0:03:00.6]} 3. Qf3 {[%clk 0:03:01.4]} 3... dxe4 {[%clk
0:02:59.3]} 4. Nxe4 {[%clk 0:03:01]} 4... Nf6 {[%clk 0:03:00]} 5. Nxf6+ {[%clk
0:02:55.2]} 5... exf6 {[%clk 0:02:59.1]} 6. c3 {[%clk 0:02:55.6]} 6... Bd6
{[%clk 0:02:55.1]} 7. d4 {[%clk 0:02:55.7]} 7... O-O {[%clk 0:02:55.4]} 8. Bd3
{[%clk 0:02:56]} 8... Re8+ {[%clk 0:02:55.6]} 9. Ne2 {[%clk 0:02:56.3]} 9... Nd7
{[%clk 0:02:36.6]} 10. h4 {[%clk 0:02:48.1]} 10... Nf8 {[%clk 0:02:25.6]} 11. h5
{[%clk 0:02:48.4]} 11... Qe7 {[%clk 0:02:11.2]} 12. Be3 {[%clk 0:02:42.3]} 12...
Be6 {[%clk 0:01:51.6]} 13. Nf4 {[%clk 0:02:32]} 13... Bxf4 {[%clk 0:01:39.1]}
14. Qxf4 {[%clk 0:02:32.9]} 14... Bd5 {[%clk 0:01:38.5]} 15. Qg3 {[%clk
0:02:23]} 15... Be4 {[%clk 0:01:35.8]} 16. Be2 {[%clk 0:02:17.4]} 16... f5
{[%clk 0:01:26.4]} 17. O-O-O {[%clk 0:01:44.9]} 17... Qe6 {[%clk 0:01:10.7]} 18.
c4 {[%clk 0:01:43]} 18... b5 {[%clk 0:01:08.8]} 19. d5 {[%clk 0:01:41.9]} 19...
cxd5 {[%clk 0:01:06.9]} 20. Bd4 {[%clk 0:01:38.2]} 20... f6 {[%clk 0:01:02]} 21.
c5 {[%clk 0:01:37.4]} 21... Bxg2 {[%clk 0:00:34.4]} 22. Rhe1 {[%clk 0:01:10]}
22... Be4 {[%clk 0:00:17.5]} 23. f3 {[%clk 0:01:05.6]} 23... Rac8 {[%clk
0:00:16.9]} 24. fxe4 {[%clk 0:01:04.5]} 24... fxe4 {[%clk 0:00:16.1]} 25. Bxb5
{[%clk 0:01:02.2]} 25... Re7 {[%clk 0:00:14.4]} 26. h6 {[%clk 0:01:00.8]} 26...
g6 {[%clk 0:00:12]} 27. Kb1 {[%clk 0:01:00.6]} 27... Nd7 {[%clk 0:00:11.2]} 28.
Bxd7 {[%clk 0:00:55.5]} 28... Rxd7 {[%clk 0:00:10.1]} 29. Rf1 {[%clk 0:00:55.4]}
29... f5 {[%clk 0:00:10.2]} 30. Qg5 {[%clk 0:00:48.8]} 30... Qe7 {[%clk
0:00:08.9]} 31. Rxf5 {[%clk 0:00:46.4]} 31... Qxg5 {[%clk 0:00:05.9]} 32. Rxg5
{[%clk 0:00:47.3]} 32... Re8 {[%clk 0:00:05.7]} 33. Kc2 {[%clk 0:00:43]} 33...
e3 {[%clk 0:00:05.4]} 34. Kd3 {[%clk 0:00:41.7]} 34... e2 {[%clk 0:00:06]} 35.
Re1 {[%clk 0:00:41.6]} 35... Rde7 {[%clk 0:00:06.9]} 36. Rg2 {[%clk 0:00:40.3]}
1-0